[Event "*** Titled Tuesday Blitz"]
[Site "Chess.com"]
[Date "2021.04.20"]
[Round "6"]
[White "azikom"]
[Black "kleopl"]
[Result "1/2-1/2"]
[WhiteElo "2644"]
[BlackElo "2502"]
[TimeControl "180+1"]
[EndTime "11:05:39 PDT"]
[Termination "Game drawn by repetition"]

1. d4 {[%clk 0:02:58.4]} 1... f5 {[%clk 0:02:58.9]} 2. c4 {[%clk 0:02:57.5]}
2... Nf6 {[%clk 0:02:58.6]} 3. Nc3 {[%clk 0:02:57.6]} 3... d6 {[%clk 0:02:58.8]}
4. Nf3 {[%clk 0:02:56.1]} 4... g6 {[%clk 0:02:58.4]} 5. g3 {[%clk 0:02:55.7]}
5... Bg7 {[%clk 0:02:58.5]} 6. Bg2 {[%clk 0:02:56.4]} 6... O-O {[%clk
0:02:59.2]} 7. O-O {[%clk 0:02:57]} 7... Qe8 {[%clk 0:02:59.6]} 8. d5 {[%clk
0:02:57.1]} 8... Na6 {[%clk 0:02:59.9]} 9. Nd4 {[%clk 0:02:56.6]} 9... Nc5
{[%clk 0:02:56.8]} 10. b4 {[%clk 0:02:56]} 10... Nfe4 {[%clk 0:02:54.7]} 11.
Nxe4 {[%clk 0:02:46]} 11... Nxe4 {[%clk 0:02:55.6]} 12. Bb2 {[%clk 0:02:45.9]}
12... c5 {[%clk 0:02:43.2]} 13. dxc6 {[%clk 0:02:43.1]} 13... bxc6 {[%clk
0:02:42.2]} 14. Qc2 {[%clk 0:02:43.1]} 14... Rb8 {[%clk 0:02:22.8]} 15. a3
{[%clk 0:02:42.7]} 15... c5 {[%clk 0:02:12.5]} 16. Nb5 {[%clk 0:02:42]} 16...
Bxb2 {[%clk 0:01:56.7]} 17. Qxb2 {[%clk 0:02:41.6]} 17... Be6 {[%clk 0:01:47.4]}
18. Qc2 {[%clk 0:02:35.3]} 18... Qf7 {[%clk 0:01:42.8]} 19. Rfc1 {[%clk
0:01:30.2]} 19... a6 {[%clk 0:01:37.4]} 20. Nc7 {[%clk 0:01:27.7]} 20... cxb4
{[%clk 0:01:33]} 21. Nxa6 {[%clk 0:01:16.7]} 21... b3 {[%clk 0:01:27.6]} 22. Qb2
{[%clk 0:01:16.4]} 22... Rb6 {[%clk 0:01:15.3]} 23. Nb4 {[%clk 0:01:01.8]} 23...
Bxc4 {[%clk 0:01:15.2]} 24. e3 {[%clk 0:01:01.2]} 24... Be6 {[%clk 0:01:09.8]}
25. Rab1 {[%clk 0:00:58.5]} 25... Nc5 {[%clk 0:01:07.1]} 26. Qd4 {[%clk
0:00:54.3]} 26... Rfb8 {[%clk 0:01:03.3]} 27. h4 {[%clk 0:00:50.2]} 27... Qf6
{[%clk 0:00:58.1]} 28. Rc3 {[%clk 0:00:40]} 28... Na4 {[%clk 0:00:48.8]} 29. Rc7
{[%clk 0:00:37.9]} 29... Qxd4 {[%clk 0:00:46.2]} 30. exd4 {[%clk 0:00:37.6]}
30... Rxb4 {[%clk 0:00:14.2]} 31. axb4 {[%clk 0:00:36.9]} 31... Rxb4 {[%clk
0:00:15.1]} 32. d5 {[%clk 0:00:35.1]} 32... Bf7 {[%clk 0:00:12.5]} 33. Rxe7
{[%clk 0:00:22.5]} 33... Nc3 {[%clk 0:00:10.7]} 34. Rb2 {[%clk 0:00:22.5]} 34...
Nd1 {[%clk 0:00:09.4]} 35. Rb1 {[%clk 0:00:20.8]} 35... Nc3 {[%clk 0:00:09.6]}
36. Rb2 {[%clk 0:00:20.8]} 36... Nd1 {[%clk 0:00:08.4]} 37. Rb1 {[%clk
0:00:17.1]} 37... Nc3 {[%clk 0:00:08.4]} 1/2-1/2

[Event "*** Titled Tuesday Blitz"]
[Site "Chess.com"]
[Date "2021.04.20"]
[Round "6"]
[White "Sychev_Klementy"]
[Black "nrvisakh"]
[Result "1-0"]
[WhiteElo "2913"]
[BlackElo "2789"]
[TimeControl "180+1"]
[EndTime "11:05:41 PDT"]
[Termination "Sychev_Klementy won by resignation"]

1. e4 {[%clk 0:03:00.9]} 1... c5 {[%clk 0:02:56.2]} 2. Nf3 {[%clk 0:03:00.2]}
2... g6 {[%clk 0:02:56.6]} 3. d4 {[%clk 0:02:58.1]} 3... cxd4 {[%clk 0:02:56.8]}
4. Nxd4 {[%clk 0:02:58.8]} 4... Bg7 {[%clk 0:02:57.3]} 5. Nc3 {[%clk 0:02:59.2]}
5... Nc6 {[%clk 0:02:57.2]} 6. Be3 {[%clk 0:02:59.9]} 6... Nf6 {[%clk
0:02:55.6]} 7. Nxc6 {[%clk 0:02:59.9]} 7... bxc6 {[%clk 0:02:53.8]} 8. e5 {[%clk
0:03:00.1]} 8... Nd5 {[%clk 0:02:54]} 9. Nxd5 {[%clk 0:02:59.7]} 9... cxd5
{[%clk 0:02:54.9]} 10. Qxd5 {[%clk 0:03:00]} 10... Rb8 {[%clk 0:02:53.4]} 11.
O-O-O {[%clk 0:03:00]} 11... O-O {[%clk 0:02:51.5]} 12. Bxa7 {[%clk 0:02:56.4]}
12... Rb7 {[%clk 0:02:21.7]} 13. Be3 {[%clk 0:02:52]} 13... Qc7 {[%clk
0:02:17.2]} 14. Qc5 {[%clk 0:02:14.1]} 14... Qb8 {[%clk 0:02:15]} 15. Bd4 {[%clk
0:02:11.5]} 15... d6 {[%clk 0:01:20.5]} 16. exd6 {[%clk 0:01:55.2]} 16... exd6
{[%clk 0:01:19]} 17. Qc3 {[%clk 0:01:40.8]} 17... Bf5 {[%clk 0:01:18.3]} 18.
Bxg7 {[%clk 0:01:37.9]} 18... Rc8 {[%clk 0:01:18]} 19. Bc4 {[%clk 0:01:38.2]}
19... Rxc4 {[%clk 0:01:11.9]} 20. Qxc4 {[%clk 0:01:36.7]} 20... Rc7 {[%clk
0:01:12.2]} 21. Qxc7 {[%clk 0:01:31.2]} 21... Qxc7 {[%clk 0:01:11.8]} 22. Bc3
{[%clk 0:01:31.9]} 22... Qc6 {[%clk 0:01:06.1]} 23. Rhe1 {[%clk 0:01:20.3]}
23... Be6 {[%clk 0:00:51.4]} 24. f3 {[%clk 0:01:14.7]} 24... g5 {[%clk
0:00:50.9]} 25. Rd4 {[%clk 0:00:57.8]} 25... h6 {[%clk 0:00:47.7]} 26. a4 {[%clk
0:00:52.7]} 26... Kh7 {[%clk 0:00:44.1]} 27. Red1 {[%clk 0:00:48.1]} 27... Kg6
{[%clk 0:00:41.9]} 28. Kb1 {[%clk 0:00:44.2]} 28... d5 {[%clk 0:00:39.9]} 29. a5
{[%clk 0:00:40.9]} 29... Qb5 {[%clk 0:00:38.6]} 30. b3 {[%clk 0:00:38]} 30...
Qe2 {[%clk 0:00:38]} 31. R1d2 {[%clk 0:00:35.1]} 31... Qf1+ {[%clk 0:00:35.7]}
32. Kb2 {[%clk 0:00:35.1]} 32... h5 {[%clk 0:00:35.9]} 33. h3 {[%clk 0:00:33.7]}
33... h4 {[%clk 0:00:31.2]} 34. Ra4 {[%clk 0:00:33]} 34... Qa6 {[%clk
0:00:29.6]} 35. f4 {[%clk 0:00:33.3]} 35... g4 {[%clk 0:00:29]} 36. hxg4 {[%clk
0:00:30.9]} 36... Bxg4 {[%clk 0:00:29.9]} 37. Rxd5 {[%clk 0:00:30.6]} 37... Bf5
{[%clk 0:00:30.2]} 38. Rb4 {[%clk 0:00:25.5]} 38... Qc8 {[%clk 0:00:23.7]} 39.
Rb6+ {[%clk 0:00:23.5]} 39... Kh7 {[%clk 0:00:23.3]} 40. a6 {[%clk 0:00:19.7]}
40... Bg6 {[%clk 0:00:18.4]} 41. a7 {[%clk 0:00:17]} 41... Qa8 {[%clk
0:00:18.6]} 42. Rb8 {[%clk 0:00:14.3]} 1-0

[Event "*** Titled Tuesday Blitz"]
[Site "Chess.com"]
[Date "2021.04.20"]
[Round "6"]
[White "HackingKid98"]
[Black "nikitakhoroshev"]
[Result "0-1"]
[WhiteElo "2465"]
[BlackElo "2626"]
[TimeControl "180+1"]
[EndTime "11:05:41 PDT"]
[Termination "nikitakhoroshev won by checkmate"]

1. d4 {[%clk 0:03:00.9]} 1... Nf6 {[%clk 0:02:58.6]} 2. c4 {[%clk 0:03:00.3]}
2... e6 {[%clk 0:02:59.1]} 3. g3 {[%clk 0:03:00.4]} 3... Bb4+ {[%clk 0:02:58.5]}
4. Nd2 {[%clk 0:02:58.4]} 4... Nc6 {[%clk 0:02:57.5]} 5. Nf3 {[%clk 0:02:57.9]}
5... d5 {[%clk 0:02:57.4]} 6. Qc2 {[%clk 0:02:56]} 6... O-O {[%clk 0:02:54.8]}
7. Bg2 {[%clk 0:02:55.7]} 7... a5 {[%clk 0:02:53.4]} 8. O-O {[%clk 0:02:54.8]}
8... a4 {[%clk 0:02:52.5]} 9. a3 {[%clk 0:02:50.4]} 9... Bxd2 {[%clk 0:02:52.3]}
10. Bxd2 {[%clk 0:02:50]} 10... Ne4 {[%clk 0:02:43]} 11. Rfd1 {[%clk 0:02:41.8]}
11... Bd7 {[%clk 0:02:31.1]} 12. Be1 {[%clk 0:02:39.8]} 12... Na5 {[%clk
0:02:29.4]} 13. Bxa5 {[%clk 0:02:20.4]} 13... Rxa5 {[%clk 0:02:30.3]} 14. Rac1
{[%clk 0:02:15.9]} 14... c6 {[%clk 0:02:13.9]} 15. Ne5 {[%clk 0:02:15.2]} 15...
Nd6 {[%clk 0:02:08.6]} 16. c5 {[%clk 0:02:10.8]} 16... Nc8 {[%clk 0:02:05.2]}
17. e3 {[%clk 0:02:03.2]} 17... f6 {[%clk 0:02:04.2]} 18. Nd3 {[%clk 0:02:01.9]}
18... Ne7 {[%clk 0:02:02]} 19. b4 {[%clk 0:01:50.1]} 19... axb3 {[%clk
0:02:01.4]} 20. Qxb3 {[%clk 0:01:49.9]} 20... Bc8 {[%clk 0:01:57.8]} 21. Nf4
{[%clk 0:01:46.9]} 21... g5 {[%clk 0:01:57.1]} 22. Ne2 {[%clk 0:01:42.5]} 22...
Ng6 {[%clk 0:01:55.5]} 23. Nc3 {[%clk 0:01:41.6]} 23... h5 {[%clk 0:01:54.8]}
24. Na4 {[%clk 0:01:21.8]} 24... Rf7 {[%clk 0:01:48.3]} 25. Nb6 {[%clk
0:01:21.1]} 25... f5 {[%clk 0:01:46.1]} 26. f3 {[%clk 0:01:04.1]} 26... h4
{[%clk 0:01:45.6]} 27. e4 {[%clk 0:01:03]} 27... hxg3 {[%clk 0:01:42.3]} 28.
hxg3 {[%clk 0:01:03.9]} 28... f4 {[%clk 0:01:42.6]} 29. g4 {[%clk 0:00:38.9]}
29... Nh4 {[%clk 0:01:32.1]} 30. e5 {[%clk 0:00:37.7]} 30... Bd7 {[%clk
0:01:27.6]} 31. Rd2 {[%clk 0:00:29.9]} 31... Be8 {[%clk 0:01:27.3]} 32. Bh1
{[%clk 0:00:19.7]} 32... Rh7 {[%clk 0:01:26.2]} 33. Rh2 {[%clk 0:00:19]} 33...
Bg6 {[%clk 0:01:25.6]} 34. Rc3 {[%clk 0:00:17.6]} 34... Ra7 {[%clk 0:01:22.8]}
35. Qb2 {[%clk 0:00:17.3]} 35... Kf7 {[%clk 0:01:20.8]} 36. a4 {[%clk
0:00:16.7]} 36... Ke7 {[%clk 0:01:17.8]} 37. Ra3 {[%clk 0:00:15.9]} 37... Qh8
{[%clk 0:01:16.1]} 38. a5 {[%clk 0:00:14.9]} 38... Bd3 {[%clk 0:01:01.4]} 39.
Rxd3 {[%clk 0:00:12.9]} 39... Rxa5 {[%clk 0:01:00.4]} 40. Rdd2 {[%clk
0:00:05.5]} 40... Kd8 {[%clk 0:00:49.1]} 41. Rhf2 {[%clk 0:00:04.6]} 41... Rb5
{[%clk 0:00:47.4]} 42. Qc2 {[%clk 0:00:03.4]} 42... Kc7 {[%clk 0:00:44.6]} 43.
Qc1 {[%clk 0:00:02.8]} 43... Ng6 {[%clk 0:00:41.3]} 44. Ra2 {[%clk 0:00:02.5]}
44... Rxh1+ {[%clk 0:00:40]} 45. Kg2 {[%clk 0:00:02.3]} 45... Qh3# {[%clk
0:00:40.8]} 0-1

[Event "*** Titled Tuesday Blitz"]
[Site "Chess.com"]
[Date "2021.04.20"]
[Round "6"]
[White "Nils_03"]
[Black "lacafi"]
[Result "0-1"]
[WhiteElo "2392"]
[BlackElo "2230"]
[TimeControl "180+1"]
[EndTime "11:05:41 PDT"]
[Termination "lacafi won by checkmate"]

1. d4 {[%clk 0:03:00.9]} 1... f5 {[%clk 0:02:58.9]} 2. Nf3 {[%clk 0:02:58.2]}
2... Nf6 {[%clk 0:02:59.3]} 3. Nc3 {[%clk 0:02:55.1]} 3... g6 {[%clk 0:02:59.7]}
4. Bf4 {[%clk 0:02:55.3]} 4... Bg7 {[%clk 0:02:59.8]} 5. e3 {[%clk 0:02:55.2]}
5... O-O {[%clk 0:03:00]} 6. h4 {[%clk 0:02:55.2]} 6... h6 {[%clk 0:02:54.3]} 7.
Ne5 {[%clk 0:02:52.1]} 7... Qe8 {[%clk 0:02:51.8]} 8. Bc4+ {[%clk 0:02:49.9]}
8... e6 {[%clk 0:02:49.7]} 9. h5 {[%clk 0:02:33.5]} 9... g5 {[%clk 0:02:48.5]}
10. Bg3 {[%clk 0:02:31.8]} 10... d5 {[%clk 0:02:46.4]} 11. Bd3 {[%clk
0:02:29.7]} 11... c6 {[%clk 0:02:44.6]} 12. Qe2 {[%clk 0:02:28.3]} 12... Ne4
{[%clk 0:02:40.6]} 13. Bxe4 {[%clk 0:02:23.8]} 13... fxe4 {[%clk 0:02:40.1]} 14.
O-O-O {[%clk 0:02:21.9]} 14... Nd7 {[%clk 0:02:33]} 15. Ng6 {[%clk 0:02:20.9]}
15... Rf7 {[%clk 0:02:32]} 16. f4 {[%clk 0:02:16.4]} 16... exf3 {[%clk
0:02:31.5]} 17. gxf3 {[%clk 0:02:15.5]} 17... e5 {[%clk 0:02:28.3]} 18. dxe5
{[%clk 0:02:12.6]} 18... Nxe5 {[%clk 0:02:28.2]} 19. Bxe5 {[%clk 0:01:56.5]}
19... Bxe5 {[%clk 0:02:27.5]} 20. Nxe5 {[%clk 0:01:49.1]} 20... Qxe5 {[%clk
0:02:28.4]} 21. Qd3 {[%clk 0:01:46.9]} 21... Bf5 {[%clk 0:02:10]} 22. e4 {[%clk
0:01:46.4]} 22... dxe4 {[%clk 0:02:03.5]} 23. fxe4 {[%clk 0:01:46.4]} 23... Bg4
{[%clk 0:01:45.5]} 24. Rdf1 {[%clk 0:01:43.3]} 24... Raf8 {[%clk 0:00:54.9]} 25.
Rfg1 {[%clk 0:01:37]} 25... Bf3 {[%clk 0:00:46.8]} 26. Rh3 {[%clk 0:01:29.7]}
26... Kh8 {[%clk 0:00:35.8]} 27. Rhg3 {[%clk 0:01:18.8]} 27... b5 {[%clk
0:00:33.7]} 28. a3 {[%clk 0:01:16.4]} 28... a5 {[%clk 0:00:28.6]} 29. Kb1 {[%clk
0:01:00.3]} 29... b4 {[%clk 0:00:25.1]} 30. axb4 {[%clk 0:01:00.4]} 30... axb4
{[%clk 0:00:24.9]} 31. Na2 {[%clk 0:00:57.5]} 31... Bxe4 {[%clk 0:00:22.9]} 32.
Qc4 {[%clk 0:00:54.6]} 32... Ra7 {[%clk 0:00:17.5]} 33. Re3 {[%clk 0:00:48.8]}
33... Bxc2+ {[%clk 0:00:14]} 34. Qxc2 {[%clk 0:00:44.5]} 34... Qxe3 {[%clk
0:00:13.5]} 35. Rc1 {[%clk 0:00:40.7]} 35... Rxa2 {[%clk 0:00:08.4]} 36. Kxa2
{[%clk 0:00:37.6]} 36... b3+ {[%clk 0:00:08.8]} 37. Qxb3 {[%clk 0:00:36.4]}
37... Ra8+ {[%clk 0:00:09]} 38. Qa4 {[%clk 0:00:18.5]} 38... Rxa4+ {[%clk
0:00:08.6]} 39. Kb1 {[%clk 0:00:18.2]} 39... Qd3+ {[%clk 0:00:08.7]} 40. Rc2
{[%clk 0:00:17.1]} 40... Rc4 {[%clk 0:00:08.8]} 41. Ka1 {[%clk 0:00:16.8]} 41...
Qxc2 {[%clk 0:00:08]} 42. b4 {[%clk 0:00:17.7]} 42... Rc3 {[%clk 0:00:06.9]} 43.
b5 {[%clk 0:00:16.9]} 43... Ra3# {[%clk 0:00:07.4]} 0-1

[Event "*** Titled Tuesday Blitz"]
[Site "Chess.com"]
[Date "2021.04.20"]
[Round "6"]
[White "manitodeplomo"]
[Black "Kale36"]
[Result "1-0"]
[WhiteElo "2578"]
[BlackElo "2309"]
[TimeControl "180+1"]
[EndTime "11:05:43 PDT"]
[Termination "manitodeplomo won on time"]

1. d4 {[%clk 0:02:59.4]} 1... d5 {[%clk 0:02:54.9]} 2. c4 {[%clk 0:02:59.1]}
2... Nc6 {[%clk 0:02:55.2]} 3. Nc3 {[%clk 0:02:57]} 3... Nf6 {[%clk 0:02:48]} 4.
Nf3 {[%clk 0:02:53.7]} 4... e6 {[%clk 0:02:42.5]} 5. Bg5 {[%clk 0:02:52]} 5...
Be7 {[%clk 0:02:42.3]} 6. e3 {[%clk 0:02:52.4]} 6... h6 {[%clk 0:02:30.5]} 7.
Bh4 {[%clk 0:02:28.3]} 7... O-O {[%clk 0:02:25.1]} 8. Rc1 {[%clk 0:02:27]} 8...
Ne4 {[%clk 0:02:18.2]} 9. Bxe7 {[%clk 0:02:23.4]} 9... Nxe7 {[%clk 0:02:18.2]}
10. Bd3 {[%clk 0:02:19.9]} 10... Nxc3 {[%clk 0:02:13.4]} 11. Rxc3 {[%clk
0:02:20.8]} 11... c6 {[%clk 0:02:12.4]} 12. O-O {[%clk 0:02:19.9]} 12... dxc4
{[%clk 0:02:03.9]} 13. Rxc4 {[%clk 0:02:13.6]} 13... b6 {[%clk 0:01:56.5]} 14.
Rc1 {[%clk 0:02:06.5]} 14... Bb7 {[%clk 0:01:55.9]} 15. Bb1 {[%clk 0:01:59.4]}
15... Rc8 {[%clk 0:01:34.5]} 16. Qc2 {[%clk 0:01:52.9]} 16... g6 {[%clk
0:01:33.7]} 17. b4 {[%clk 0:01:51.4]} 17... c5 {[%clk 0:01:30.1]} 18. dxc5
{[%clk 0:01:49.1]} 18... Bxf3 {[%clk 0:01:30.1]} 19. gxf3 {[%clk 0:01:49]} 19...
Nf5 {[%clk 0:01:15.8]} 20. Rfd1 {[%clk 0:01:37.8]} 20... Qg5+ {[%clk 0:01:15]}
21. Kf1 {[%clk 0:01:37.2]} 21... bxc5 {[%clk 0:01:15.7]} 22. bxc5 {[%clk
0:01:36.2]} 22... Qh5 {[%clk 0:01:16.1]} 23. Qe4 {[%clk 0:01:32.5]} 23... Qxh2
{[%clk 0:01:11.1]} 24. c6 {[%clk 0:01:08]} 24... Rfd8 {[%clk 0:01:05.6]} 25. f4
{[%clk 0:01:02.5]} 25... Qh5 {[%clk 0:00:41.9]} 26. Ke1 {[%clk 0:00:55.2]} 26...
Nh4 {[%clk 0:00:15.8]} 27. Bd3 {[%clk 0:00:37.2]} 27... Nf3+ {[%clk 0:00:13.2]}
28. Kf1 {[%clk 0:00:36.9]} 28... Nh2+ {[%clk 0:00:05.2]} 29. Kg2 {[%clk
0:00:31]} 29... Ng4 {[%clk 0:00:04.1]} 30. Rh1 {[%clk 0:00:26.4]} 30... Qa5
{[%clk 0:00:03.6]} 31. Rc2 {[%clk 0:00:14.6]} 31... Qc7 {[%clk 0:00:02.3]} 32.
Be2 {[%clk 0:00:12.9]} 32... Nf6 {[%clk 0:00:02.2]} 33. Qf3 {[%clk 0:00:13.2]}
33... Kg7 {[%clk 0:00:03.1]} 34. Rhc1 {[%clk 0:00:11.8]} 34... Rd6 {[%clk
0:00:04]} 35. e4 {[%clk 0:00:11.5]} 35... Rd4 {[%clk 0:00:01.6]} 36. Rc4 {[%clk
0:00:09.8]} 1-0

[Event "*** Titled Tuesday Blitz"]
[Site "Chess.com"]
[Date "2021.04.20"]
[Round "6"]
[White "NoboaKevin1999"]
[Black "rugbyclub"]
[Result "0-1"]
[WhiteElo "2452"]
[BlackElo "2265"]
[TimeControl "180+1"]
[EndTime "11:05:44 PDT"]
[Termination "rugbyclub won on time"]

1. d4 {[%clk 0:03:00.9]} 1... d5 {[%clk 0:02:58.8]} 2. c4 {[%clk 0:02:37.4]}
2... e6 {[%clk 0:02:57.8]} 3. Nc3 {[%clk 0:02:33.7]} 3... Nf6 {[%clk 0:02:57.2]}
4. cxd5 {[%clk 0:02:33.5]} 4... exd5 {[%clk 0:02:57.9]} 5. Bg5 {[%clk
0:02:31.6]} 5... Be7 {[%clk 0:02:57.9]} 6. e3 {[%clk 0:02:16]} 6... c6 {[%clk
0:02:56]} 7. Bd3 {[%clk 0:02:14.9]} 7... Nbd7 {[%clk 0:02:55.5]} 8. Nge2 {[%clk
0:02:14.4]} 8... h6 {[%clk 0:02:55.2]} 9. Bh4 {[%clk 0:02:07.6]} 9... O-O {[%clk
0:02:54.8]} 10. O-O {[%clk 0:01:48.9]} 10... Nh5 {[%clk 0:02:53.1]} 11. Bxe7
{[%clk 0:01:48.5]} 11... Qxe7 {[%clk 0:02:52.4]} 12. Qd2 {[%clk 0:01:49.4]}
12... Nhf6 {[%clk 0:02:33.2]} 13. Rae1 {[%clk 0:01:48.5]} 13... Re8 {[%clk
0:02:32.6]} 14. Nc1 {[%clk 0:01:47.3]} 14... a5 {[%clk 0:02:23.9]} 15. f3 {[%clk
0:01:46.9]} 15... Qd6 {[%clk 0:02:22.8]} 16. N1e2 {[%clk 0:01:43.9]} 16... b5
{[%clk 0:02:02.8]} 17. e4 {[%clk 0:01:40.4]} 17... dxe4 {[%clk 0:02:01.6]} 18.
fxe4 {[%clk 0:01:41.3]} 18... b4 {[%clk 0:02:01.9]} 19. e5 {[%clk 0:01:32.8]}
19... bxc3 {[%clk 0:01:59.7]} 20. bxc3 {[%clk 0:01:32.7]} 20... Nxe5 {[%clk
0:01:48.7]} 21. dxe5 {[%clk 0:01:30]} 21... Qxe5 {[%clk 0:01:47.6]} 22. Nd4
{[%clk 0:01:25.2]} 22... Qc5 {[%clk 0:01:11.3]} 23. Rxe8+ {[%clk 0:01:24.5]}
23... Nxe8 {[%clk 0:01:09.5]} 24. Qe2 {[%clk 0:00:32.6]} 24... Nf6 {[%clk
0:01:00.6]} 25. Bc4 {[%clk 0:00:32.2]} 25... Bg4 {[%clk 0:00:53.4]} 26. Bxf7+
{[%clk 0:00:30.9]} 26... Kh8 {[%clk 0:00:38.8]} 27. Qd3 {[%clk 0:00:22.5]} 27...
Rd8 {[%clk 0:00:34]} 28. h3 {[%clk 0:00:21.9]} 28... Bh5 {[%clk 0:00:26.3]} 29.
Rxf6 {[%clk 0:00:19.1]} 29... gxf6 {[%clk 0:00:22]} 30. Bb3 {[%clk 0:00:13.8]}
30... Qg5 {[%clk 0:00:18.6]} 31. Qf1 {[%clk 0:00:07.2]} 31... c5 {[%clk
0:00:16.6]} 32. Ne6 {[%clk 0:00:07.1]} 32... Qe3+ {[%clk 0:00:16]} 33. Kh2
{[%clk 0:00:07.2]} 33... Qe5+ {[%clk 0:00:11.9]} 34. g3 {[%clk 0:00:07.1]} 34...
Rd2+ {[%clk 0:00:12.2]} 35. Kg1 {[%clk 0:00:06.1]} 35... Qe3+ {[%clk 0:00:12.2]}
36. Kh1 {[%clk 0:00:05.7]} 36... Bf3+ {[%clk 0:00:12.7]} 0-1

[Event "*** Titled Tuesday Blitz"]
[Site "Chess.com"]
[Date "2021.04.20"]
[Round "6"]
[White "IriBu"]
[Black "svilson23"]
[Result "1-0"]
[WhiteElo "2569"]
[BlackElo "2268"]
[TimeControl "180+1"]
[EndTime "11:05:45 PDT"]
[Termination "IriBu won by resignation"]

1. e4 {[%clk 0:03:00.9]} 1... c6 {[%clk 0:02:59.1]} 2. d4 {[%clk 0:02:58.2]}
2... d5 {[%clk 0:02:59.7]} 3. Nc3 {[%clk 0:02:56.9]} 3... dxe4 {[%clk
0:02:59.5]} 4. Nxe4 {[%clk 0:02:57.3]} 4... Nf6 {[%clk 0:03:00.4]} 5. Ng3 {[%clk
0:02:56.6]} 5... c5 {[%clk 0:02:39]} 6. Nf3 {[%clk 0:02:52.8]} 6... e6 {[%clk
0:02:35.2]} 7. Bb5+ {[%clk 0:02:52]} 7... Bd7 {[%clk 0:02:34.2]} 8. Bxd7+ {[%clk
0:02:51.1]} 8... Nbxd7 {[%clk 0:02:30.9]} 9. O-O {[%clk 0:02:51]} 9... Be7
{[%clk 0:02:26.9]} 10. Re1 {[%clk 0:02:45.8]} 10... O-O {[%clk 0:02:26.4]} 11.
c3 {[%clk 0:02:46.1]} 11... Qb6 {[%clk 0:02:19.3]} 12. Qe2 {[%clk 0:02:45.7]}
12... h6 {[%clk 0:02:14]} 13. h3 {[%clk 0:02:45.3]} 13... Rfe8 {[%clk 0:02:04]}
14. Be3 {[%clk 0:02:42.1]} 14... Bd6 {[%clk 0:01:55.6]} 15. Rad1 {[%clk
0:02:35.1]} 15... Nd5 {[%clk 0:01:35.5]} 16. dxc5 {[%clk 0:02:33.4]} 16... Bxc5
{[%clk 0:01:32.2]} 17. Bxc5 {[%clk 0:02:28.3]} 17... Nxc5 {[%clk 0:01:31.4]} 18.
Ne5 {[%clk 0:02:25.9]} 18... Rad8 {[%clk 0:01:20.1]} 19. Qf3 {[%clk 0:02:22.7]}
19... Nf6 {[%clk 0:01:17.2]} 20. b3 {[%clk 0:02:20.6]} 20... Qc7 {[%clk
0:01:09.3]} 21. Rxd8 {[%clk 0:02:18.9]} 21... Rxd8 {[%clk 0:01:08.5]} 22. Qe2
{[%clk 0:01:50.4]} 22... Nce4 {[%clk 0:00:44.1]} 23. Nxe4 {[%clk 0:01:45]} 23...
Qxe5 {[%clk 0:00:44]} 24. Nxf6+ {[%clk 0:01:45]} 24... Qxf6 {[%clk 0:00:44.5]}
25. c4 {[%clk 0:01:39.6]} 25... Qd4 {[%clk 0:00:38.7]} 26. Qf3 {[%clk
0:01:39.8]} 26... b6 {[%clk 0:00:37.5]} 27. Re2 {[%clk 0:01:34.5]} 27... Qd1+
{[%clk 0:00:35.8]} 28. Kh2 {[%clk 0:01:34.9]} 28... Rd3 {[%clk 0:00:30.8]} 29.
Qa8+ {[%clk 0:01:31.9]} 29... Rd8 {[%clk 0:00:29.9]} 30. Qe4 {[%clk 0:01:30.4]}
30... Rd4 {[%clk 0:00:27.5]} 31. Qe5 {[%clk 0:01:21]} 31... Rd3 {[%clk 0:00:25]}
32. Re3 {[%clk 0:01:12.3]} 32... Rd2 {[%clk 0:00:24.4]} 33. Qb8+ {[%clk
0:01:00.1]} 33... Kh7 {[%clk 0:00:16]} 34. Rf3 {[%clk 0:01:00.5]} 34... f6
{[%clk 0:00:14.6]} 35. Qxa7 {[%clk 0:00:59.7]} 35... Rd6 {[%clk 0:00:10.2]} 36.
Qf7 {[%clk 0:00:50.6]} 36... Qb1 {[%clk 0:00:08.8]} 37. Rxf6 {[%clk 0:00:46.5]}
37... Rd1 {[%clk 0:00:08.7]} 38. Rxe6 {[%clk 0:00:43.1]} 38... Rh1+ {[%clk
0:00:09]} 39. Kg3 {[%clk 0:00:43.6]} 39... Qd3+ {[%clk 0:00:08.3]} 40. Re3
{[%clk 0:00:43.8]} 40... Qd6+ {[%clk 0:00:07.7]} 41. Qf4 {[%clk 0:00:44.1]}
41... Qg6+ {[%clk 0:00:07.7]} 42. Kf3 {[%clk 0:00:37]} 42... Qh5+ {[%clk
0:00:07.7]} 43. Qg4 {[%clk 0:00:35.9]} 43... Qf7+ {[%clk 0:00:07.5]} 44. Kg3
{[%clk 0:00:36.3]} 44... Qc7+ {[%clk 0:00:06.8]} 45. Qf4 {[%clk 0:00:36.8]}
45... Qc5 {[%clk 0:00:05.9]} 46. Qe4+ {[%clk 0:00:35.5]} 1-0